[Event "Late-Titled-Tuesday-Blitz-January-23-2024"]
[Site "Chess.com"]
[Date "2024.01.23"]
[Round "5"]
[White "Njal28"]
[Black "tptagain"]
[Result "1-0"]
[WhiteElo "3053"]
[BlackElo "2932"]
[TimeControl "180+1"]
[EndTime "14:54:43 PST"]
[Termination "Njal28 won by resignation"]

1. e4 {[%clk 0:03:00.9]} 1... c5 {[%clk 0:02:59.8]} 2. Nf3 {[%clk 0:03:01.1]}
2... Nc6 {[%clk 0:03:00.4]} 3. Nc3 {[%clk 0:02:59.1]} 3... d6 {[%clk 0:02:59.8]}
4. Bb5 {[%clk 0:02:56.6]} 4... e5 {[%clk 0:02:59]} 5. d3 {[%clk 0:02:56.4]} 5...
g6 {[%clk 0:02:57.9]} 6. Nd5 {[%clk 0:02:55.1]} 6... Bg7 {[%clk 0:02:57.8]} 7.
c3 {[%clk 0:02:54.2]} 7... a6 {[%clk 0:02:54.9]} 8. Bc4 {[%clk 0:02:51]} 8...
Nce7 {[%clk 0:02:46.8]} 9. O-O {[%clk 0:02:37.1]} 9... Nxd5 {[%clk 0:02:44.5]}
10. Bxd5 {[%clk 0:02:38]} 10... Ne7 {[%clk 0:02:39.9]} 11. Bb3 {[%clk
0:02:37.6]} 11... O-O {[%clk 0:02:39]} 12. h3 {[%clk 0:02:37.3]} 12... Qc7
{[%clk 0:02:29.9]} 13. Re1 {[%clk 0:02:37]} 13... b5 {[%clk 0:02:29.6]} 14. d4
{[%clk 0:02:29.4]} 14... exd4 {[%clk 0:02:21.2]} 15. cxd4 {[%clk 0:02:28.6]}
15... Nc6 {[%clk 0:02:07.9]} 16. Be3 {[%clk 0:02:18]} 16... c4 {[%clk 0:02:00]}
17. Bc2 {[%clk 0:02:18]} 17... d5 {[%clk 0:01:44]} 18. exd5 {[%clk 0:01:55]}
18... Nb4 {[%clk 0:01:43.9]} 19. Be4 {[%clk 0:01:55.7]} 19... Bb7 {[%clk
0:01:44.4]} 20. d6 {[%clk 0:01:54.8]} 20... Qc8 {[%clk 0:01:45]} 21. Bg5 {[%clk
0:01:37.2]} 21... f6 {[%clk 0:01:37.3]} 22. Bf4 {[%clk 0:01:16.7]} 22... Bxe4
{[%clk 0:01:30.3]} 23. Rxe4 {[%clk 0:01:17.6]} 23... Nd5 {[%clk 0:01:27.5]} 24.
Qd2 {[%clk 0:01:11.3]} 24... Re8 {[%clk 0:01:21.6]} 25. Rxe8+ {[%clk 0:01:04.2]}
25... Qxe8 {[%clk 0:01:21.8]} 26. Re1 {[%clk 0:01:02.7]} 26... Qf7 {[%clk
0:01:15]} 27. Bg3 {[%clk 0:00:59.6]} 27... Bf8 {[%clk 0:01:06.6]} 28. Qa5 {[%clk
0:00:47.1]} 28... Qd7 {[%clk 0:00:52.7]} 29. a4 {[%clk 0:00:47.4]} 29... Qc6
{[%clk 0:00:38]} 30. Nd2 {[%clk 0:00:38.1]} 30... Qb6 {[%clk 0:00:29.2]} 31.
Qxb6 {[%clk 0:00:34.7]} 31... Nxb6 {[%clk 0:00:30.1]} 32. axb5 {[%clk
0:00:33.5]} 32... axb5 {[%clk 0:00:30]} 33. Ne4 {[%clk 0:00:33.7]} 33... Kf7
{[%clk 0:00:23.6]} 34. Nc5 {[%clk 0:00:27.6]} 34... Rd8 {[%clk 0:00:12.9]} 35.
Ra1 {[%clk 0:00:24.5]} 35... g5 {[%clk 0:00:08]} 36. Ra7+ {[%clk 0:00:23.3]}
36... Kg8 {[%clk 0:00:06]} 37. Rb7 {[%clk 0:00:19.5]} 37... Nd5 {[%clk
0:00:02.3]} 38. Ne6 {[%clk 0:00:19.2]} 38... Rxd6 {[%clk 0:00:02.3]} 39. Bxd6
{[%clk 0:00:14]} 39... Bxd6 {[%clk 0:00:02.2]} 40. Rd7 {[%clk 0:00:14.6]} 40...
Nf4 {[%clk 0:00:02]} 41. Rxd6 {[%clk 0:00:14.8]} 1-0

[Event "Late-Titled-Tuesday-Blitz-January-23-2024"]
[Site "Chess.com"]
[Date "2024.01.23"]
[Round "5"]
[White "mishanick"]
[Black "AntonSmirnov"]
[Result "1-0"]
[WhiteElo "3075"]
[BlackElo "2981"]
[TimeControl "180+1"]
[EndTime "14:54:45 PST"]
[Termination "mishanick won by resignation"]

1. d4 {[%clk 0:03:00.9]} 1... d5 {[%clk 0:02:58]} 2. c4 {[%clk 0:03:01.3]} 2...
c6 {[%clk 0:02:57.3]} 3. Nf3 {[%clk 0:03:01.2]} 3... Nf6 {[%clk 0:02:57.4]} 4.
Nc3 {[%clk 0:03:02.1]} 4... dxc4 {[%clk 0:02:56.1]} 5. a4 {[%clk 0:03:02.8]}
5... Bf5 {[%clk 0:02:56.1]} 6. Ne5 {[%clk 0:03:03.5]} 6... e6 {[%clk 0:02:56.8]}
7. f3 {[%clk 0:03:02.8]} 7... Bb4 {[%clk 0:02:57.1]} 8. Kf2 {[%clk 0:03:03.5]}
8... Bc2 {[%clk 0:02:56.1]} 9. Qd2 {[%clk 0:02:58.6]} 9... Bb3 {[%clk
0:02:55.7]} 10. e4 {[%clk 0:02:57.1]} 10... b5 {[%clk 0:02:54.2]} 11. Qe3 {[%clk
0:02:47.3]} 11... O-O {[%clk 0:02:40.5]} 12. axb5 {[%clk 0:02:46.5]} 12... Bxc3
{[%clk 0:02:38]} 13. bxc3 {[%clk 0:02:43]} 13... cxb5 {[%clk 0:02:38.3]} 14. Ba3
{[%clk 0:02:40.3]} 14... Re8 {[%clk 0:02:37.5]} 15. h4 {[%clk 0:02:38.9]} 15...
a5 {[%clk 0:02:32.6]} 16. Be2 {[%clk 0:02:38.7]} 16... Nfd7 {[%clk 0:02:26.5]}
17. h5 {[%clk 0:02:32.6]} 17... h6 {[%clk 0:02:06.1]} 18. Ng4 {[%clk 0:02:30.4]}
18... Nc6 {[%clk 0:02:01.1]} 19. Bd6 {[%clk 0:02:27.9]} 19... f5 {[%clk
0:01:56.7]} 20. Ne5 {[%clk 0:02:23.9]} 20... Nb6 {[%clk 0:01:19.8]} 21. Bc5
{[%clk 0:02:12.2]} 21... Nxe5 {[%clk 0:01:11.5]} 22. dxe5 {[%clk 0:02:11.6]}
22... Na4 {[%clk 0:01:12.1]} 23. Bd4 {[%clk 0:01:30.3]} 23... Rf8 {[%clk
0:01:03.6]} 24. exf5 {[%clk 0:01:28.6]} 24... Rxf5 {[%clk 0:01:03.7]} 25. g4
{[%clk 0:01:21.1]} 25... Rf7 {[%clk 0:01:03.4]} 26. Kg3 {[%clk 0:01:21.3]} 26...
b4 {[%clk 0:00:56.2]} 27. cxb4 {[%clk 0:01:06.9]} 27... axb4 {[%clk 0:00:56.4]}
28. Rhc1 {[%clk 0:01:07.5]} 28... c3 {[%clk 0:00:54.5]} 29. Bd3 {[%clk
0:01:04.8]} 29... Nb2 {[%clk 0:00:51.1]} 30. Bg6 {[%clk 0:00:40.2]} 30... Rf8
{[%clk 0:00:49.5]} 31. Bc5 {[%clk 0:00:37.6]} 31... Nc4 {[%clk 0:00:41.7]} 32.
Qf2 {[%clk 0:00:26.4]} 32... Qc7 {[%clk 0:00:37.9]} 33. Bxf8 {[%clk 0:00:24.3]}
33... Rxf8 {[%clk 0:00:38]} 34. f4 {[%clk 0:00:21.7]} 34... Nd2 {[%clk
0:00:28.8]} 35. Ra7 {[%clk 0:00:19]} 35... Qc6 {[%clk 0:00:21.6]} 36. Rxg7+
{[%clk 0:00:14]} 36... Kh8 {[%clk 0:00:18.1]} 37. Rh7+ {[%clk 0:00:13.9]} 37...
Kg8 {[%clk 0:00:18.6]} 38. Qa7 {[%clk 0:00:12.9]} 1-0

[Event "Late-Titled-Tuesday-Blitz-January-23-2024"]
[Site "Chess.com"]
[Date "2024.01.23"]
[Round "5"]
[White "LiemLe"]
[Black "Elsa167"]
[Result "1-0"]
[WhiteElo "3108"]
[BlackElo "2942"]
[TimeControl "180+1"]
[EndTime "14:54:45 PST"]
[Termination "LiemLe won by checkmate"]

1. Nf3 {[%clk 0:03:00.9]} 1... Nf6 {[%clk 0:02:58.5]} 2. c4 {[%clk 0:03:00.6]}
2... g6 {[%clk 0:02:57.9]} 3. Nc3 {[%clk 0:02:59.6]} 3... Bg7 {[%clk 0:02:58.4]}
4. e4 {[%clk 0:02:58.8]} 4... d6 {[%clk 0:02:59]} 5. d4 {[%clk 0:02:58.6]} 5...
Bg4 {[%clk 0:02:58.8]} 6. Be2 {[%clk 0:02:56.7]} 6... Bxf3 {[%clk 0:02:59.1]} 7.
Bxf3 {[%clk 0:02:57.6]} 7... e5 {[%clk 0:02:59.5]} 8. d5 {[%clk 0:02:55.9]} 8...
h5 {[%clk 0:02:59.5]} 9. h4 {[%clk 0:02:41.1]} 9... Nbd7 {[%clk 0:02:58.7]} 10.
g3 {[%clk 0:02:32.6]} 10... Bh6 {[%clk 0:02:54.1]} 11. Bxh6 {[%clk 0:02:31.2]}
11... Rxh6 {[%clk 0:02:55]} 12. Qd2 {[%clk 0:02:31.5]} 12... Rh8 {[%clk
0:02:54.3]} 13. O-O-O {[%clk 0:02:30.2]} 13... a5 {[%clk 0:02:49.9]} 14. Kb1
{[%clk 0:02:26]} 14... Nc5 {[%clk 0:02:49.5]} 15. Rde1 {[%clk 0:02:16.2]} 15...
Kf8 {[%clk 0:02:46.5]} 16. Bd1 {[%clk 0:02:13.2]} 16... Kg7 {[%clk 0:02:40]} 17.
f4 {[%clk 0:01:52.3]} 17... c6 {[%clk 0:02:12.7]} 18. Rhf1 {[%clk 0:01:50]}
18... cxd5 {[%clk 0:02:09.9]} 19. exd5 {[%clk 0:01:43.7]} 19... e4 {[%clk
0:01:42]} 20. Qd4 {[%clk 0:01:20.2]} 20... Re8 {[%clk 0:01:41.5]} 21. Bc2 {[%clk
0:01:20]} 21... Kg8 {[%clk 0:01:28.2]} 22. f5 {[%clk 0:01:14.4]} 22... Re5
{[%clk 0:01:14.1]} 23. fxg6 {[%clk 0:01:13.6]} 23... fxg6 {[%clk 0:01:14.8]} 24.
Rf4 {[%clk 0:00:34]} 24... Qe7 {[%clk 0:01:14.3]} 25. a3 {[%clk 0:00:33.9]}
25... Re8 {[%clk 0:00:45.4]} 26. Ka2 {[%clk 0:00:22.1]} 26... Qg7 {[%clk
0:00:26.1]} 27. Ref1 {[%clk 0:00:20.4]} 27... Ng4 {[%clk 0:00:12.2]} 28. Nb5
{[%clk 0:00:19.6]} 28... R5e7 {[%clk 0:00:04.1]} 29. Qxg7+ {[%clk 0:00:19]}
29... Kxg7 {[%clk 0:00:03.4]} 30. Nxd6 {[%clk 0:00:19.9]} 30... Rd8 {[%clk
0:00:03.4]} 31. Nxe4 {[%clk 0:00:20.2]} 31... Nxe4 {[%clk 0:00:03.4]} 32. Rxe4
{[%clk 0:00:20.4]} 32... Rxe4 {[%clk 0:00:02]} 33. Bxe4 {[%clk 0:00:21.3]} 33...
Ne3 {[%clk 0:00:02.6]} 34. Rc1 {[%clk 0:00:21.2]} 34... b6 {[%clk 0:00:02.4]}
35. Rc3 {[%clk 0:00:20.4]} 35... Ng4 {[%clk 0:00:02.7]} 36. Rb3 {[%clk
0:00:20.5]} 36... Rd6 {[%clk 0:00:02.5]} 37. Bf3 {[%clk 0:00:19.2]} 37... Ne5
{[%clk 0:00:02.9]} 38. Be2 {[%clk 0:00:19.7]} 38... Kf6 {[%clk 0:00:03.3]} 39.
Re3 {[%clk 0:00:18.2]} 39... Nd7 {[%clk 0:00:03.7]} 40. b4 {[%clk 0:00:18.4]}
40... axb4 {[%clk 0:00:04]} 41. axb4 {[%clk 0:00:19.3]} 41... b5 {[%clk
0:00:04]} 42. Kb3 {[%clk 0:00:19.5]} 42... bxc4+ {[%clk 0:00:04.5]} 43. Bxc4
{[%clk 0:00:20]} 43... Ne5 {[%clk 0:00:05]} 44. Kc3 {[%clk 0:00:19.9]} 44... Kf5
{[%clk 0:00:04.9]} 45. Kd4 {[%clk 0:00:20.3]} 45... Ng4 {[%clk 0:00:04.7]} 46.
Rf3# {[%clk 0:00:20]} 1-0

[Event "Late-Titled-Tuesday-Blitz-January-23-2024"]
[Site "Chess.com"]
[Date "2024.01.23"]
[Round "5"]
[White "shirovin"]
[Black "jinxy2009"]
[Result "1-0"]
[WhiteElo "2007"]
[BlackElo "2212"]
[TimeControl "180+1"]
[EndTime "14:54:45 PST"]
[Termination "shirovin won on time"]

1. e4 {[%clk 0:03:00.9]} 1... c5 {[%clk 0:02:49.3]} 2. Nf3 {[%clk 0:02:59.8]}
2... Nc6 {[%clk 0:02:48.8]} 3. b4 {[%clk 0:02:58.5]} 3... cxb4 {[%clk
0:02:44.2]} 4. d4 {[%clk 0:02:56.2]} 4... g6 {[%clk 0:02:39.6]} 5. d5 {[%clk
0:02:54.8]} 5... Bg7 {[%clk 0:02:31.3]} 6. dxc6 {[%clk 0:02:07.5]} 6... Bxa1
{[%clk 0:02:25.5]} 7. Bc4 {[%clk 0:02:05.7]} 7... Nf6 {[%clk 0:02:13.1]} 8. e5
{[%clk 0:01:53.1]} 8... d5 {[%clk 0:02:00.4]} 9. Bb5 {[%clk 0:01:39.4]} 9... O-O
{[%clk 0:01:38.4]} 10. exf6 {[%clk 0:01:36.6]} 10... Bxf6 {[%clk 0:01:39]} 11.
O-O {[%clk 0:01:34.7]} 11... Qa5 {[%clk 0:01:28.6]} 12. Qe2 {[%clk 0:01:18.1]}
12... bxc6 {[%clk 0:01:15.5]} 13. Bxc6 {[%clk 0:01:07.4]} 13... Rb8 {[%clk
0:01:12.4]} 14. Rd1 {[%clk 0:01:01.3]} 14... e6 {[%clk 0:01:06.3]} 15. Ne5
{[%clk 0:00:45.6]} 15... Ba6 {[%clk 0:00:57.5]} 16. Qe1 {[%clk 0:00:27.1]} 16...
Qxa2 {[%clk 0:00:53.4]} 17. Bh6 {[%clk 0:00:21.2]} 17... Bg7 {[%clk 0:00:43.6]}
18. Bxg7 {[%clk 0:00:20.3]} 18... Kxg7 {[%clk 0:00:44.5]} 19. Nd7 {[%clk
0:00:20.3]} 19... Qxc2 {[%clk 0:00:21.7]} 20. Nxb8 {[%clk 0:00:17.5]} 20... Rxb8
{[%clk 0:00:21.2]} 21. Rc1 {[%clk 0:00:17]} 21... Qf5 {[%clk 0:00:19]} 22. Qe3
{[%clk 0:00:15.4]} 22... b3 {[%clk 0:00:18]} 23. Re1 {[%clk 0:00:13.1]} 23...
Bc4 {[%clk 0:00:15.7]} 24. Nd2 {[%clk 0:00:12.1]} 24... a5 {[%clk 0:00:14.7]}
25. Qa7 {[%clk 0:00:10.8]} 25... Rb4 {[%clk 0:00:13.7]} 26. Be8 {[%clk
0:00:10.2]} 26... b2 {[%clk 0:00:12.7]} 27. Nb1 {[%clk 0:00:09.2]} 27... Bd3
{[%clk 0:00:08.9]} 28. Qxa5 {[%clk 0:00:08.4]} 28... Rb8 {[%clk 0:00:06.5]} 29.
Qc3+ {[%clk 0:00:07.4]} 29... f6 {[%clk 0:00:05.2]} 30. Qc7+ {[%clk 0:00:06.1]}
30... Kh6 {[%clk 0:00:05.1]} 31. Qxb8 {[%clk 0:00:06.3]} 31... Bxb1 {[%clk
0:00:05.5]} 32. Qxb2 {[%clk 0:00:03.6]} 32... Bd3 {[%clk 0:00:04.5]} 33. Qc1+
{[%clk 0:00:03.3]} 33... Kg7 {[%clk 0:00:03.8]} 34. Qe3 {[%clk 0:00:03.4]} 34...
Be4 {[%clk 0:00:02.6]} 35. f3 {[%clk 0:00:03.6]} 1-0

[Event "Late-Titled-Tuesday-Blitz-January-23-2024"]
[Site "Chess.com"]
[Date "2024.01.23"]
[Round "5"]
[White "TimGrutter03"]
[Black "Rikikits"]
[Result "0-1"]
[WhiteElo "2570"]
[BlackElo "2831"]
[TimeControl "180+1"]
[EndTime "14:54:46 PST"]
[Termination "Rikikits won on time"]

1. Nf3 {[%clk 0:02:49.9]} 1... d5 {[%clk 0:02:59.3]} 2. c4 {[%clk 0:02:49.7]}
2... c6 {[%clk 0:02:58.6]} 3. g3 {[%clk 0:02:49.7]} 3... Nf6 {[%clk 0:02:58.4]}
4. Bg2 {[%clk 0:02:50.1]} 4... Bg4 {[%clk 0:02:58.3]} 5. O-O {[%clk 0:02:49.7]}
5... e6 {[%clk 0:02:58]} 6. b3 {[%clk 0:02:48.1]} 6... Nbd7 {[%clk 0:02:57.6]}
7. Bb2 {[%clk 0:02:48.1]} 7... Bd6 {[%clk 0:02:58]} 8. h3 {[%clk 0:02:44]} 8...
Bh5 {[%clk 0:02:57.8]} 9. d4 {[%clk 0:02:43.4]} 9... O-O {[%clk 0:02:57.8]} 10.
Nbd2 {[%clk 0:02:42.2]} 10... a5 {[%clk 0:02:57.8]} 11. Ne5 {[%clk 0:02:40.2]}
11... a4 {[%clk 0:02:55.3]} 12. Ndf3 {[%clk 0:02:39]} 12... a3 {[%clk
0:02:53.5]} 13. Bc3 {[%clk 0:02:38.7]} 13... Ne4 {[%clk 0:02:53.8]} 14. Be1
{[%clk 0:02:38.3]} 14... f5 {[%clk 0:02:44.4]} 15. Nxd7 {[%clk 0:02:22.5]} 15...
Qxd7 {[%clk 0:02:45.3]} 16. Ne5 {[%clk 0:02:21.2]} 16... Qc7 {[%clk 0:02:40.3]}
17. f4 {[%clk 0:02:15.4]} 17... c5 {[%clk 0:02:16.4]} 18. Bf3 {[%clk 0:02:00.3]}
18... Bxf3 {[%clk 0:02:11]} 19. exf3 {[%clk 0:02:00.1]} 19... cxd4 {[%clk
0:02:04.8]} 20. fxe4 {[%clk 0:01:57.2]} 20... dxe4 {[%clk 0:02:05.7]} 21. b4
{[%clk 0:01:32.7]} 21... Bxe5 {[%clk 0:02:01.5]} 22. fxe5 {[%clk 0:01:33.6]}
22... Qxe5 {[%clk 0:02:01.6]} 23. Qb3 {[%clk 0:01:25.1]} 23... g5 {[%clk
0:01:37.3]} 24. Rd1 {[%clk 0:01:18.4]} 24... Rad8 {[%clk 0:01:32.7]} 25. c5
{[%clk 0:00:57.9]} 25... f4 {[%clk 0:01:27.8]} 26. gxf4 {[%clk 0:00:50.5]} 26...
gxf4 {[%clk 0:01:28.7]} 27. Kh1 {[%clk 0:00:50.7]} 27... Kh8 {[%clk 0:01:22.7]}
28. Bh4 {[%clk 0:00:47.6]} 28... Rd5 {[%clk 0:01:17.5]} 29. Be7 {[%clk 0:00:42]}
29... Rf5 {[%clk 0:01:02.2]} 30. Bd6 {[%clk 0:00:36.7]} 30... Qf6 {[%clk
0:01:01.9]} 31. Qxa3 {[%clk 0:00:17.8]} 31... Kg7 {[%clk 0:00:48.9]} 32. Rg1+
{[%clk 0:00:17.4]} 32... Kh6 {[%clk 0:00:48.6]} 33. Qb2 {[%clk 0:00:07.9]} 33...
f3 {[%clk 0:00:42.7]} 34. Qh2 {[%clk 0:00:06.8]} 34... f2 {[%clk 0:00:35.6]} 35.
Rgf1 {[%clk 0:00:03.8]} 35... e3 {[%clk 0:00:35.9]} 36. Qg2 {[%clk 0:00:01.6]}
36... Rh5 {[%clk 0:00:27.2]} 37. Bh2 {[%clk 0:00:01.1]} 37... Rdg5 {[%clk
0:00:24.4]} 38. Qe4 {[%clk 0:00:01.1]} 38... e5 {[%clk 0:00:23.9]} 39. c6 {[%clk
0:00:01]} 39... bxc6 {[%clk 0:00:23.4]} 40. a4 {[%clk 0:00:01.5]} 40... Rxh3
{[%clk 0:00:22.1]} 41. Rd3 {[%clk 0:00:01.6]} 41... Rg1+ {[%clk 0:00:17.9]} 42.
Rxg1 {[%clk 0:00:01.4]} 42... fxg1=Q+ {[%clk 0:00:18.8]} 43. Kxg1 {[%clk
0:00:01.8]} 43... Qf2+ {[%clk 0:00:19.5]} 0-1

[Event "Late-Titled-Tuesday-Blitz-January-23-2024"]
[Site "Chess.com"]
[Date "2024.01.23"]
[Round "5"]
[White "olawsson"]
[Black "Manukyan_Artak"]
[Result "1-0"]
[WhiteElo "2173"]
[BlackElo "2505"]
[TimeControl "180+1"]
[EndTime "14:54:47 PST"]
[Termination "olawsson won by checkmate"]

1. d4 {[%clk 0:03:00.9]} 1... d5 {[%clk 0:02:58.4]} 2. c4 {[%clk 0:03:00.7]}
2... dxc4 {[%clk 0:02:57.7]} 3. Nf3 {[%clk 0:02:59.1]} 3... Nf6 {[%clk
0:02:57.3]} 4. e3 {[%clk 0:02:57.8]} 4... e6 {[%clk 0:02:56.2]} 5. Bxc4 {[%clk
0:02:57.6]} 5... a6 {[%clk 0:02:56.7]} 6. a4 {[%clk 0:02:56.5]} 6... c5 {[%clk
0:02:56.4]} 7. O-O {[%clk 0:02:55.4]} 7... Nc6 {[%clk 0:02:56.4]} 8. Qe2 {[%clk
0:02:51.4]} 8... cxd4 {[%clk 0:02:55.6]} 9. Rd1 {[%clk 0:02:50]} 9... Be7 {[%clk
0:02:54.3]} 10. Nxd4 {[%clk 0:02:44.2]} 10... Nxd4 {[%clk 0:02:53.9]} 11. Rxd4
{[%clk 0:02:44]} 11... Bd7 {[%clk 0:02:43.8]} 12. e4 {[%clk 0:02:31.2]} 12... e5
{[%clk 0:02:33.5]} 13. Rd1 {[%clk 0:01:56.3]} 13... Qc7 {[%clk 0:02:29.3]} 14.
Nc3 {[%clk 0:01:43]} 14... Rc8 {[%clk 0:02:16.7]} 15. Bb3 {[%clk 0:01:36.8]}
15... O-O {[%clk 0:02:04.8]} 16. Bg5 {[%clk 0:01:34]} 16... Be6 {[%clk
0:01:59.4]} 17. Nd5 {[%clk 0:01:06.2]} 17... Nxd5 {[%clk 0:01:52.4]} 18. exd5
{[%clk 0:01:04.6]} 18... Bxd5 {[%clk 0:01:48.6]} 19. Rxd5 {[%clk 0:00:34.1]}
19... Bxg5 {[%clk 0:01:45.6]} 20. Rxe5 {[%clk 0:00:17.2]} 20... Bf6 {[%clk
0:01:41.8]} 21. Re4 {[%clk 0:00:16.4]} 21... g6 {[%clk 0:01:34.6]} 22. h3 {[%clk
0:00:16.1]} 22... Kg7 {[%clk 0:01:21.2]} 23. Re1 {[%clk 0:00:09]} 23... Qb6
{[%clk 0:01:08.4]} 24. Qf3 {[%clk 0:00:08.8]} 24... Rc7 {[%clk 0:00:56.3]} 25.
R1e2 {[%clk 0:00:07.3]} 25... h5 {[%clk 0:00:39]} 26. g3 {[%clk 0:00:07.3]}
26... h4 {[%clk 0:00:30.5]} 27. Kg2 {[%clk 0:00:07.2]} 27... hxg3 {[%clk
0:00:26.7]} 28. fxg3 {[%clk 0:00:07.5]} 28... Rd8 {[%clk 0:00:17.9]} 29. h4
{[%clk 0:00:07]} 29... Rc5 {[%clk 0:00:12.9]} 30. Rf4 {[%clk 0:00:04.8]} 30...
Rd6 {[%clk 0:00:12]} 31. Rf2 {[%clk 0:00:04.5]} 31... Rcc6 {[%clk 0:00:10.2]}
32. g4 {[%clk 0:00:04.5]} 32... Rd4 {[%clk 0:00:02.4]} 33. g5 {[%clk 0:00:04.1]}
33... Rxf4 {[%clk 0:00:02.2]} 34. Qxf4 {[%clk 0:00:03.7]} 34... Bd4 {[%clk
0:00:01.4]} 35. Qxf7+ {[%clk 0:00:03.3]} 35... Kh8 {[%clk 0:00:01.4]} 36. Qg8#
{[%clk 0:00:03.4]} 1-0

[Event "Late-Titled-Tuesday-Blitz-January-23-2024"]
[Site "Chess.com"]
[Date "2024.01.23"]
[Round "5"]
[White "Yurovskykh_Oleksandr"]
[Black "TheoSlade"]
[Result "1-0"]
[WhiteElo "2619"]
[BlackElo "2467"]
[TimeControl "180+1"]
[EndTime "14:54:49 PST"]
[Termination "Yurovskykh_Oleksandr won on time"]

1. d4 {[%clk 0:03:00.9]} 1... d5 {[%clk 0:03:00]} 2. Bf4 {[%clk 0:03:00.7]} 2...
Nf6 {[%clk 0:02:58.7]} 3. e3 {[%clk 0:03:01.2]} 3... c5 {[%clk 0:02:59.2]} 4. c3
{[%clk 0:03:01.5]} 4... Nc6 {[%clk 0:02:59.8]} 5. Nd2 {[%clk 0:03:01.9]} 5... e6
{[%clk 0:03:00.4]} 6. Ngf3 {[%clk 0:03:00.2]} 6... Bd6 {[%clk 0:03:01]} 7. Bg3
{[%clk 0:03:00.6]} 7... O-O {[%clk 0:03:01.5]} 8. Bb5 {[%clk 0:03:00.9]} 8...
Ne7 {[%clk 0:02:58.7]} 9. Bd3 {[%clk 0:03:00.7]} 9... b6 {[%clk 0:02:52.4]} 10.
e4 {[%clk 0:03:00.9]} 10... Bxg3 {[%clk 0:02:13.3]} 11. hxg3 {[%clk 0:03:00.3]}
11... dxe4 {[%clk 0:02:08.2]} 12. Nxe4 {[%clk 0:03:01.2]} 12... Ng6 {[%clk
0:01:55.2]} 13. dxc5 {[%clk 0:02:43.9]} 13... bxc5 {[%clk 0:01:41.5]} 14. Nxc5
{[%clk 0:02:40.4]} 14... Qb6 {[%clk 0:01:40.3]} 15. Nb3 {[%clk 0:02:30.2]} 15...
Rd8 {[%clk 0:01:37]} 16. Qe2 {[%clk 0:02:26.8]} 16... Bb7 {[%clk 0:01:23.9]} 17.
O-O {[%clk 0:02:18.3]} 17... Bxf3 {[%clk 0:01:05.8]} 18. gxf3 {[%clk 0:02:15.3]}
18... a5 {[%clk 0:00:52.3]} 19. Rad1 {[%clk 0:02:08.2]} 19... a4 {[%clk
0:00:51.7]} 20. Nd4 {[%clk 0:02:08.1]} 20... Rab8 {[%clk 0:00:45.1]} 21. Rd2
{[%clk 0:02:08.2]} 21... Ne7 {[%clk 0:00:36.7]} 22. Rfd1 {[%clk 0:02:04.2]}
22... Ned5 {[%clk 0:00:29.6]} 23. Be4 {[%clk 0:01:50.4]} 23... a3 {[%clk
0:00:27.4]} 24. Bxd5 {[%clk 0:01:41.4]} 24... Nxd5 {[%clk 0:00:27.3]} 25. Rb1
{[%clk 0:01:38.3]} 25... Nxc3 {[%clk 0:00:26.8]} 26. bxc3 {[%clk 0:01:30.7]}
26... Qxb1+ {[%clk 0:00:27.3]} 27. Kg2 {[%clk 0:01:31.4]} 27... Rb2 {[%clk
0:00:23.8]} 28. Qe3 {[%clk 0:00:59.3]} 28... Qxa2 {[%clk 0:00:20]} 29. Qg5
{[%clk 0:00:46]} 29... f6 {[%clk 0:00:16.1]} 30. Qa5 {[%clk 0:00:41.1]} 30...
Rf8 {[%clk 0:00:10.3]} 31. Rxb2 {[%clk 0:00:17.6]} 31... Qxb2 {[%clk 0:00:11.2]}
32. Nxe6 {[%clk 0:00:18.2]} 32... Re8 {[%clk 0:00:08.6]} 33. Qd5 {[%clk
0:00:15]} 33... Kh8 {[%clk 0:00:05.6]} 34. Qd7 {[%clk 0:00:15.1]} 34... Rg8
{[%clk 0:00:03]} 35. Nxg7 {[%clk 0:00:11.3]} 35... a2 {[%clk 0:00:01.6]} 36. Nh5
{[%clk 0:00:05.7]} 36... Qxc3 {[%clk 0:00:01.8]} 37. Nxf6 {[%clk 0:00:02]} 1-0